[Event "*** Titled Tuesday Blitz"]
[Site "Chess.com"]
[Date "2020.04.07"]
[Round "5"]
[White "michaelk123"]
[Black "Carnivoras"]
[Result "0-1"]
[WhiteElo "2425"]
[BlackElo "2620"]
[TimeControl "180+1"]
[EndTime "13:56:58 PDT"]
[Termination "Carnivoras won on time"]

1. e4 {[%clk 0:03:00.9]} 1... d5 {[%clk 0:03:00.9]} 2. exd5 {[%clk 0:03:00.6]}
2... Nf6 {[%clk 0:03:00.7]} 3. d4 {[%clk 0:03:00.1]} 3... Nxd5 {[%clk
0:03:00.7]} 4. h3 {[%clk 0:02:59.8]} 4... Bf5 {[%clk 0:02:57.9]} 5. Nf3 {[%clk
0:02:58]} 5... e6 {[%clk 0:02:57.9]} 6. Be2 {[%clk 0:02:55.5]} 6... Be7 {[%clk
0:02:57.6]} 7. O-O {[%clk 0:02:53.3]} 7... O-O {[%clk 0:02:57.6]} 8. a3 {[%clk
0:02:40.5]} 8... Nd7 {[%clk 0:02:56.9]} 9. c4 {[%clk 0:02:40.7]} 9... N5b6
{[%clk 0:02:56.1]} 10. Nc3 {[%clk 0:02:40.5]} 10... c6 {[%clk 0:02:56.1]} 11.
Be3 {[%clk 0:02:40.2]} 11... Nf6 {[%clk 0:02:56]} 12. Re1 {[%clk 0:02:39.6]}
12... Qc7 {[%clk 0:02:53.2]} 13. Qc1 {[%clk 0:02:34.4]} 13... Rad8 {[%clk
0:02:51.4]} 14. Bf4 {[%clk 0:02:34.6]} 14... Qc8 {[%clk 0:02:48.7]} 15. Qe3
{[%clk 0:02:34.7]} 15... Rfe8 {[%clk 0:02:38.8]} 16. Ne5 {[%clk 0:02:32.1]}
16... Nbd7 {[%clk 0:02:36.2]} 17. Rad1 {[%clk 0:02:30.6]} 17... Nxe5 {[%clk
0:02:35.2]} 18. Bxe5 {[%clk 0:02:30.2]} 18... Nd7 {[%clk 0:02:35.3]} 19. Bf4
{[%clk 0:02:25.4]} 19... Nf8 {[%clk 0:02:34.6]} 20. Qg3 {[%clk 0:02:21.4]} 20...
Ng6 {[%clk 0:02:33.2]} 21. d5 {[%clk 0:02:00.3]} 21... Bh4 {[%clk 0:02:20]} 22.
Qf3 {[%clk 0:01:57.6]} 22... exd5 {[%clk 0:02:17.7]} 23. cxd5 {[%clk 0:01:55.8]}
23... cxd5 {[%clk 0:02:12.7]} 24. Be3 {[%clk 0:01:19.8]} 24... Be4 {[%clk
0:01:38.8]} 25. Qh5 {[%clk 0:01:19.8]} 25... Bxg2 {[%clk 0:01:12.6]} 26. Kxg2
{[%clk 0:01:12.5]} 26... d4 {[%clk 0:01:12.3]} 27. Bg4 {[%clk 0:01:05.9]} 27...
dxe3 {[%clk 0:00:47.9]} 28. Bxc8 {[%clk 0:00:29.4]} 28... Nf4+ {[%clk
0:00:47.6]} 29. Kf3 {[%clk 0:00:29.1]} 29... Nxh5 {[%clk 0:00:47.7]} 30. Bd7
{[%clk 0:00:27.1]} 30... Re7 {[%clk 0:00:27.9]} 31. Rxe3 {[%clk 0:00:26.9]}
31... Rxe3+ {[%clk 0:00:23.9]} 32. fxe3 {[%clk 0:00:25]} 32... g6 {[%clk
0:00:24.2]} 33. Bb5 {[%clk 0:00:17.7]} 33... Rb8 {[%clk 0:00:21]} 34. Bc4 {[%clk
0:00:16.3]} 34... Rc8 {[%clk 0:00:17.2]} 35. Bb3 {[%clk 0:00:15.1]} 35... Bf6
{[%clk 0:00:15.1]} 36. Rd7 {[%clk 0:00:14.2]} 36... Bxc3 {[%clk 0:00:14.7]} 37.
bxc3 {[%clk 0:00:13.7]} 37... Rxc3 {[%clk 0:00:12.1]} 38. Bxf7+ {[%clk
0:00:13.7]} 38... Kf8 {[%clk 0:00:08.8]} 39. Rxb7 {[%clk 0:00:13.3]} 39... Rxa3
{[%clk 0:00:08.6]} 40. Bc4 {[%clk 0:00:11.3]} 40... h6 {[%clk 0:00:05.2]} 41.
Rf7+ {[%clk 0:00:09.6]} 41... Ke8 {[%clk 0:00:05.6]} 42. Rh7 {[%clk 0:00:08.4]}
42... Kf8 {[%clk 0:00:06]} 43. Rf7+ {[%clk 0:00:06.6]} 43... Ke8 {[%clk
0:00:06.2]} 44. Rb7 {[%clk 0:00:05.1]} 44... Nf6 {[%clk 0:00:04.7]} 45. Bf7+
{[%clk 0:00:04.9]} 45... Kd8 {[%clk 0:00:03.6]} 46. Kf4 {[%clk 0:00:03.1]} 46...
g5+ {[%clk 0:00:02.5]} 47. Kf5 {[%clk 0:00:02.5]} 47... Nd7 {[%clk 0:00:03.4]}
0-1

[Event "*** Titled Tuesday Blitz"]
[Site "Chess.com"]
[Date "2020.04.07"]
[Round "5"]
[White "LivajaM"]
[Black "IljaJoke"]
[Result "1-0"]
[WhiteElo "2331"]
[BlackElo "2495"]
[TimeControl "180+1"]
[EndTime "13:56:58 PDT"]
[Termination "LivajaM won by resignation"]

1. d4 {[%clk 0:02:58.7]} 1... Nf6 {[%clk 0:03:00.1]} 2. Bg5 {[%clk 0:02:57.7]}
2... d5 {[%clk 0:02:59.1]} 3. Bxf6 {[%clk 0:02:57]} 3... gxf6 {[%clk 0:02:59.5]}
4. c4 {[%clk 0:02:57.7]} 4... dxc4 {[%clk 0:02:55.8]} 5. Nc3 {[%clk 0:02:58.2]}
5... e6 {[%clk 0:02:53.3]} 6. e3 {[%clk 0:02:57.9]} 6... c5 {[%clk 0:02:53.5]}
7. Nf3 {[%clk 0:02:55.8]} 7... Nc6 {[%clk 0:02:51.7]} 8. dxc5 {[%clk 0:02:50.2]}
8... Bxc5 {[%clk 0:02:49]} 9. Bxc4 {[%clk 0:02:47.4]} 9... Qxd1+ {[%clk
0:02:44.9]} 10. Rxd1 {[%clk 0:02:46.1]} 10... Ke7 {[%clk 0:02:40]} 11. O-O
{[%clk 0:02:44.7]} 11... a6 {[%clk 0:02:38.5]} 12. Ne4 {[%clk 0:02:43.7]} 12...
Ba7 {[%clk 0:02:36.1]} 13. a3 {[%clk 0:02:34.4]} 13... b5 {[%clk 0:02:35.1]} 14.
Ba2 {[%clk 0:02:27.1]} 14... Bd7 {[%clk 0:02:33.8]} 15. Rd2 {[%clk 0:02:19.7]}
15... Rad8 {[%clk 0:02:33.2]} 16. Rfd1 {[%clk 0:02:19.5]} 16... f5 {[%clk
0:02:16]} 17. Nd6 {[%clk 0:02:12.9]} 17... Bb8 {[%clk 0:01:25.8]} 18. Nb7 {[%clk
0:01:53.8]} 18... Bc8 {[%clk 0:01:21.9]} 19. Nxd8 {[%clk 0:01:50.9]} 19... Nxd8
{[%clk 0:01:22.1]} 20. Nd4 {[%clk 0:01:32.7]} 20... Rg8 {[%clk 0:01:18]} 21. g3
{[%clk 0:01:27.2]} 21... h5 {[%clk 0:01:18]} 22. h4 {[%clk 0:01:25.7]} 22... Kf6
{[%clk 0:01:18.3]} 23. Kf1 {[%clk 0:01:24.8]} 23... Nb7 {[%clk 0:01:06]} 24. b4
{[%clk 0:01:17.1]} 24... Nd6 {[%clk 0:01:03.2]} 25. Nc6 {[%clk 0:01:15.7]} 25...
Ne4 {[%clk 0:00:48.2]} 26. Nxb8 {[%clk 0:01:13.2]} 26... Nxd2+ {[%clk
0:00:47.6]} 27. Rxd2 {[%clk 0:01:13.1]} 27... Bb7 {[%clk 0:00:45]} 28. Nd7+
{[%clk 0:01:12]} 28... Ke7 {[%clk 0:00:45.5]} 29. Nc5 {[%clk 0:01:05.3]} 29...
Bf3 {[%clk 0:00:45.6]} 30. Ke1 {[%clk 0:01:04.1]} 30... a5 {[%clk 0:00:43.2]}
31. Rd7+ {[%clk 0:01:03.6]} 31... Kf6 {[%clk 0:00:42.6]} 32. Kd2 {[%clk
0:00:57.4]} 32... axb4 {[%clk 0:00:40.9]} 33. axb4 {[%clk 0:00:57.6]} 33... Ra8
{[%clk 0:00:41.8]} 34. Bb3 {[%clk 0:00:57]} 34... Ra1 {[%clk 0:00:41.6]} 35. Kc3
{[%clk 0:00:56.1]} 35... Rc1+ {[%clk 0:00:37.6]} 36. Kb2 {[%clk 0:00:54.1]}
36... Rf1 {[%clk 0:00:33.1]} 37. Rd2 {[%clk 0:00:53.8]} 37... Rh1 {[%clk
0:00:23.9]} 38. Nd7+ {[%clk 0:00:53.2]} 38... Ke7 {[%clk 0:00:23]} 39. Ne5
{[%clk 0:00:53.3]} 39... Be4 {[%clk 0:00:23.3]} 40. Bc2 {[%clk 0:00:52.4]} 40...
Bd5 {[%clk 0:00:22.4]} 41. Bd3 {[%clk 0:00:51.2]} 41... f6 {[%clk 0:00:20.2]}
42. Ng6+ {[%clk 0:00:50.7]} 42... Kf7 {[%clk 0:00:20.3]} 43. Nf4 {[%clk
0:00:50.7]} 43... Bc6 {[%clk 0:00:19]} 44. Nxh5 {[%clk 0:00:43.7]} 44... e5
{[%clk 0:00:17.2]} 45. Bxf5 {[%clk 0:00:43.2]} 45... e4 {[%clk 0:00:16.5]} 46.
Nf4 {[%clk 0:00:42]} 46... Re1 {[%clk 0:00:15.6]} 47. Be6+ {[%clk 0:00:41.4]}
47... Ke7 {[%clk 0:00:15.1]} 48. Bd5 {[%clk 0:00:41.6]} 48... Be8 {[%clk
0:00:14.9]} 49. Bxe4 {[%clk 0:00:41.4]} 49... f5 {[%clk 0:00:15.5]} 50. Bxf5
{[%clk 0:00:41.1]} 50... Kf6 {[%clk 0:00:16.4]} 51. Bd3 {[%clk 0:00:40.6]} 51...
Bf7 {[%clk 0:00:16.4]} 52. h5 {[%clk 0:00:40.6]} 52... Kg5 {[%clk 0:00:16.6]}
53. Bxb5 {[%clk 0:00:40.3]} 53... Rh1 {[%clk 0:00:09.7]} 54. Bc6 {[%clk
0:00:39.2]} 54... Rh2 {[%clk 0:00:09.3]} 55. b5 {[%clk 0:00:39.4]} 55... Kg4
{[%clk 0:00:05.6]} 56. b6 {[%clk 0:00:39.4]} 56... Bxh5 {[%clk 0:00:05.4]} 57.
Nxh5 {[%clk 0:00:38.5]} 57... Rxh5 {[%clk 0:00:06.3]} 58. b7 {[%clk 0:00:38.9]}
1-0

[Event "*** Titled Tuesday Blitz"]
[Site "Chess.com"]
[Date "2020.04.07"]
[Round "5"]
[White "SahaNeelash"]
[Black "DerSchachaffe"]
[Result "1-0"]
[WhiteElo "2501"]
[BlackElo "2468"]
[TimeControl "180+1"]
[EndTime "13:56:58 PDT"]
[Termination "SahaNeelash won on time"]

1. d4 {[%clk 0:03:00.9]} 1... Nf6 {[%clk 0:02:59.4]} 2. Bg5 {[%clk 0:02:59]}
2... c5 {[%clk 0:02:59.5]} 3. d5 {[%clk 0:02:53.4]} 3... d6 {[%clk 0:02:59.6]}
4. Nc3 {[%clk 0:02:52.5]} 4... h6 {[%clk 0:02:59.3]} 5. Bd2 {[%clk 0:02:47.7]}
5... b5 {[%clk 0:02:44.6]} 6. Nxb5 {[%clk 0:02:27.5]} 6... Nxd5 {[%clk
0:02:44.5]} 7. e4 {[%clk 0:02:27.5]} 7... Nf6 {[%clk 0:02:35.5]} 8. e5 {[%clk
0:02:09.2]} 8... dxe5 {[%clk 0:02:33.7]} 9. Bc3 {[%clk 0:02:09.1]} 9... Nc6
{[%clk 0:02:15.6]} 10. Qxd8+ {[%clk 0:02:00.5]} 10... Kxd8 {[%clk 0:02:15]} 11.
O-O-O+ {[%clk 0:01:57.7]} 11... Bd7 {[%clk 0:02:00.7]} 12. Nf3 {[%clk
0:01:50.5]} 12... Ng4 {[%clk 0:01:46.9]} 13. Be1 {[%clk 0:01:47.2]} 13... e4
{[%clk 0:01:44.8]} 14. Nd2 {[%clk 0:01:31.7]} 14... f5 {[%clk 0:01:15.6]} 15.
Nc4 {[%clk 0:01:22.4]} 15... Rb8 {[%clk 0:01:05]} 16. a4 {[%clk 0:01:07.1]}
16... a6 {[%clk 0:00:58.8]} 17. Nc3 {[%clk 0:00:59]} 17... e6 {[%clk 0:00:53.9]}
18. f3 {[%clk 0:00:50.5]} 18... exf3 {[%clk 0:00:52.3]} 19. gxf3 {[%clk
0:00:51.4]} 19... Nf6 {[%clk 0:00:36.5]} 20. Bg3 {[%clk 0:00:50.8]} 20... Rb4
{[%clk 0:00:35.7]} 21. Ne5 {[%clk 0:00:42.2]} 21... Nxe5 {[%clk 0:00:33.5]} 22.
Bxe5 {[%clk 0:00:43.1]} 22... c4 {[%clk 0:00:18.7]} 23. Be2 {[%clk 0:00:25.3]}
23... Bc5 {[%clk 0:00:18.4]} 24. Kb1 {[%clk 0:00:20.1]} 24... Ke7 {[%clk
0:00:17.6]} 25. Ka2 {[%clk 0:00:19]} 25... Rc8 {[%clk 0:00:14.8]} 26. b3 {[%clk
0:00:18.8]} 26... cxb3+ {[%clk 0:00:14.3]} 27. cxb3 {[%clk 0:00:19.7]} 27... Be8
{[%clk 0:00:12.3]} 28. Bxa6 {[%clk 0:00:19.7]} 28... Ra8 {[%clk 0:00:12.1]} 29.
Be2 {[%clk 0:00:18.9]} 29... Nd7 {[%clk 0:00:06.5]} 30. Bxg7 {[%clk 0:00:18.2]}
30... Nb6 {[%clk 0:00:06.2]} 31. Kb2 {[%clk 0:00:17.4]} 31... Bxa4 {[%clk
0:00:05.3]} 32. Nxa4 {[%clk 0:00:15.3]} 32... Nxa4+ {[%clk 0:00:05.2]} 33. Kc2
{[%clk 0:00:15.9]} 33... Nb6 {[%clk 0:00:03.8]} 34. Ra1 {[%clk 0:00:16.4]} 34...
Rc8 {[%clk 0:00:04]} 35. Kb2 {[%clk 0:00:14.4]} 35... Rd8 {[%clk 0:00:01.9]} 36.
Bc3 {[%clk 0:00:14.3]} 36... Rf4 {[%clk 0:00:01.2]} 37. Ra7+ {[%clk 0:00:14.3]}
37... Kf8 {[%clk 0:00:01.3]} 38. Rd1 {[%clk 0:00:13.9]} 38... Nd5 {[%clk
0:00:01.5]} 39. Ra5 {[%clk 0:00:13.2]} 39... Be7 {[%clk 0:00:01.1]} 40. Be5
{[%clk 0:00:11.4]} 1-0

[Event "*** Titled Tuesday Blitz"]
[Site "Chess.com"]
[Date "2020.04.07"]
[Round "5"]
[White "mc4chess"]
[Black "willc-h99"]
[Result "1-0"]
[WhiteElo "2373"]
[BlackElo "2248"]
[TimeControl "180+1"]
[EndTime "13:56:58 PDT"]
[Termination "mc4chess won on time"]

1. c4 {[%clk 0:03:00.9]} 1... c5 {[%clk 0:02:58.4]} 2. Nc3 {[%clk 0:03:00.2]}
2... g6 {[%clk 0:02:57.9]} 3. g3 {[%clk 0:02:59.5]} 3... Bg7 {[%clk 0:02:58.3]}
4. Bg2 {[%clk 0:03:00.2]} 4... Nc6 {[%clk 0:02:55]} 5. Nf3 {[%clk 0:03:00.8]}
5... d6 {[%clk 0:02:54.5]} 6. O-O {[%clk 0:03:01.3]} 6... e5 {[%clk 0:02:54.7]}
7. d3 {[%clk 0:02:58.8]} 7... Nge7 {[%clk 0:02:54.4]} 8. Rb1 {[%clk 0:02:59.3]}
8... O-O {[%clk 0:02:52.7]} 9. a3 {[%clk 0:02:58.9]} 9... a5 {[%clk 0:02:53.2]}
10. Ne1 {[%clk 0:02:58]} 10... Be6 {[%clk 0:02:52]} 11. Nc2 {[%clk 0:02:56.8]}
11... d5 {[%clk 0:02:52.1]} 12. cxd5 {[%clk 0:02:56.6]} 12... Nxd5 {[%clk
0:02:52.3]} 13. Ne3 {[%clk 0:02:55.4]} 13... Nde7 {[%clk 0:02:51.5]} 14. Bd2
{[%clk 0:02:48.7]} 14... b6 {[%clk 0:02:43.2]} 15. Nc4 {[%clk 0:02:40.6]} 15...
Rb8 {[%clk 0:02:41.8]} 16. Nb5 {[%clk 0:02:32.8]} 16... Qd7 {[%clk 0:02:39]} 17.
b4 {[%clk 0:02:16.3]} 17... axb4 {[%clk 0:02:34.9]} 18. axb4 {[%clk 0:02:15.9]}
18... cxb4 {[%clk 0:02:33.7]} 19. Bxb4 {[%clk 0:02:12.3]} 19... Nxb4 {[%clk
0:02:33.7]} 20. Rxb4 {[%clk 0:02:12.1]} 20... Nd5 {[%clk 0:02:10.2]} 21. Rb1
{[%clk 0:02:04.3]} 21... Rfc8 {[%clk 0:02:03.1]} 22. Qd2 {[%clk 0:02:02.1]}
22... Rc5 {[%clk 0:01:59.9]} 23. Nba3 {[%clk 0:01:44.1]} 23... b5 {[%clk
0:01:58.3]} 24. Rfc1 {[%clk 0:01:43.2]} 24... Ra8 {[%clk 0:01:53.1]} 25. Ne3
{[%clk 0:01:37.8]} 25... Rxc1+ {[%clk 0:01:39.9]} 26. Qxc1 {[%clk 0:01:35.3]}
26... Rc8 {[%clk 0:01:31.5]} 27. Qd2 {[%clk 0:01:23]} 27... Nc3 {[%clk
0:01:07.8]} 28. Rb2 {[%clk 0:01:19.3]} 28... e4 {[%clk 0:00:35.3]} 29. dxe4
{[%clk 0:01:04.5]} 29... Qxd2 {[%clk 0:00:27.7]} 30. Rxd2 {[%clk 0:01:05.4]}
30... b4 {[%clk 0:00:28]} 31. Nac2 {[%clk 0:01:05.1]} 31... b3 {[%clk
0:00:27.7]} 32. Na3 {[%clk 0:01:05]} 32... Rb8 {[%clk 0:00:23.2]} 33. Nd1 {[%clk
0:01:00.5]} 33... Nxd1 {[%clk 0:00:15.6]} 34. Rxd1 {[%clk 0:00:58]} 34... b2
{[%clk 0:00:16.3]} 35. f4 {[%clk 0:00:50.3]} 35... Bc3 {[%clk 0:00:15.3]} 36. e5
{[%clk 0:00:47.5]} 36... Ba2 {[%clk 0:00:12.9]} 37. Be4 {[%clk 0:00:45.3]} 37...
Rc8 {[%clk 0:00:10.4]} 38. Bb1 {[%clk 0:00:11.2]} 38... Bb3 {[%clk 0:00:02.7]}
39. Rd3 {[%clk 0:00:09.6]} 1-0

[Event "*** Titled Tuesday Blitz"]
[Site "Chess.com"]
[Date "2020.04.07"]
[Round "5"]
[White "ersekitamara"]
[Black "killer311"]
[Result "0-1"]
[WhiteElo "1902"]
[BlackElo "2312"]
[TimeControl "180+1"]
[EndTime "13:56:58 PDT"]
[Termination "killer311 won by resignation"]

1. d4 {[%clk 0:03:00.9]} 1... d5 {[%clk 0:02:59.8]} 2. Bg5 {[%clk 0:02:53.4]}
2... Nf6 {[%clk 0:02:57.8]} 3. e3 {[%clk 0:02:51.8]} 3... Ne4 {[%clk 0:02:56.2]}
4. Bf4 {[%clk 0:02:49.9]} 4... g6 {[%clk 0:02:56.5]} 5. Nd2 {[%clk 0:02:41.1]}
5... Bg7 {[%clk 0:02:55.4]} 6. Bd3 {[%clk 0:02:41.3]} 6... Nd6 {[%clk
0:02:51.8]} 7. Ngf3 {[%clk 0:02:40.5]} 7... O-O {[%clk 0:02:51.1]} 8. O-O {[%clk
0:02:40.2]} 8... Bf5 {[%clk 0:02:51]} 9. Bxf5 {[%clk 0:02:22.3]} 9... Nxf5
{[%clk 0:02:49.3]} 10. c3 {[%clk 0:02:18.9]} 10... Nd7 {[%clk 0:02:40.5]} 11. e4
{[%clk 0:02:18.8]} 11... dxe4 {[%clk 0:02:38.4]} 12. Nxe4 {[%clk 0:02:19.7]}
12... c6 {[%clk 0:02:36.8]} 13. Qd2 {[%clk 0:02:15.3]} 13... Nb6 {[%clk
0:02:34]} 14. b3 {[%clk 0:02:12.5]} 14... Nd5 {[%clk 0:02:33.5]} 15. Be5 {[%clk
0:02:06.8]} 15... f6 {[%clk 0:02:30.8]} 16. Bg3 {[%clk 0:02:06.6]} 16... Nxg3
{[%clk 0:02:30]} 17. hxg3 {[%clk 0:02:06.7]} 17... f5 {[%clk 0:02:30.2]} 18. Nc5
{[%clk 0:02:04.1]} 18... Qc8 {[%clk 0:02:26.1]} 19. Ng5 {[%clk 0:01:58.6]} 19...
Bh6 {[%clk 0:02:16.3]} 20. f4 {[%clk 0:01:50.6]} 20... Bxg5 {[%clk 0:02:14.9]}
21. fxg5 {[%clk 0:01:51.5]} 21... b6 {[%clk 0:02:13.1]} 22. Nd3 {[%clk
0:01:51.3]} 22... c5 {[%clk 0:02:06]} 23. c4 {[%clk 0:01:51.7]} 23... Nc7 {[%clk
0:02:01.3]} 24. d5 {[%clk 0:01:50.5]} 24... Ne8 {[%clk 0:01:56.8]} 25. Rae1
{[%clk 0:01:48.6]} 25... Nd6 {[%clk 0:01:55.3]} 26. Rxe7 {[%clk 0:01:44.1]}
26... Ne4 {[%clk 0:01:55.8]} 27. Qf4 {[%clk 0:01:43.3]} 27... Re8 {[%clk
0:01:52.8]} 28. Qe5 {[%clk 0:01:30]} 28... Rxe7 {[%clk 0:01:48.1]} 29. Qxe7
{[%clk 0:01:30.9]} 29... Qe8 {[%clk 0:01:46.3]} 30. Qxe8+ {[%clk 0:01:04.1]}
30... Rxe8 {[%clk 0:01:44.4]} 31. Re1 {[%clk 0:01:05]} 31... Kf7 {[%clk
0:01:38]} 32. b4 {[%clk 0:00:53.2]} 32... cxb4 {[%clk 0:01:35.6]} 33. Nxb4
{[%clk 0:00:53.2]} 33... Nxg5 {[%clk 0:01:31.6]} 34. Rxe8 {[%clk 0:00:51.8]}
34... Kxe8 {[%clk 0:01:31.7]} 35. Nc6 {[%clk 0:00:52.7]} 35... a5 {[%clk
0:01:26.4]} 36. Kf2 {[%clk 0:00:37]} 36... Ne4+ {[%clk 0:01:26.1]} 37. Kf3
{[%clk 0:00:31.7]} 37... Nd2+ {[%clk 0:01:25.9]} 38. Kf4 {[%clk 0:00:30.8]}
38... Nxc4 {[%clk 0:01:25.7]} 39. Kg5 {[%clk 0:00:30.6]} 39... Ne3 {[%clk
0:01:24.5]} 40. Kh6 {[%clk 0:00:19.6]} 40... Nxd5 {[%clk 0:01:22]} 41. Kxh7
{[%clk 0:00:20]} 41... g5 {[%clk 0:01:09.5]} 42. Kg6 {[%clk 0:00:19.6]} 42... f4
{[%clk 0:01:09.7]} 43. Kxg5 {[%clk 0:00:18.4]} 43... fxg3 {[%clk 0:01:08.6]} 44.
Kg4 {[%clk 0:00:18.8]} 44... Nc3 {[%clk 0:01:08.5]} 45. Kxg3 {[%clk 0:00:17]}
45... Nxa2 {[%clk 0:01:08.5]} 46. Kf4 {[%clk 0:00:17.5]} 46... Kd7 {[%clk
0:01:06.6]} 47. Nd4 {[%clk 0:00:17.9]} 47... Nc3 {[%clk 0:01:03.8]} 48. g4
{[%clk 0:00:18]} 48... a4 {[%clk 0:01:00.8]} 49. g5 {[%clk 0:00:18.3]} 49... a3
{[%clk 0:00:59.6]} 50. g6 {[%clk 0:00:18.6]} 50... Nd5+ {[%clk 0:00:58.8]} 51.
Kg5 {[%clk 0:00:18.1]} 51... Ne7 {[%clk 0:00:58.6]} 52. g7 {[%clk 0:00:17.6]}
52... b5 {[%clk 0:00:57.7]} 53. Kf6 {[%clk 0:00:11]} 53... b4 {[%clk 0:00:57.2]}
54. Kf7 {[%clk 0:00:10.3]} 54... a2 {[%clk 0:00:54.9]} 55. Nb3 {[%clk
0:00:09.9]} 55... Kd6 {[%clk 0:00:54.5]} 56. Na1 {[%clk 0:00:09.5]} 56... Nf5
{[%clk 0:00:51.2]} 57. Kg6 {[%clk 0:00:03.8]} 57... Nxg7 {[%clk 0:00:50.6]} 58.
Kxg7 {[%clk 0:00:04.7]} 58... Kd5 {[%clk 0:00:50.7]} 59. Kf6 {[%clk 0:00:05.2]}
59... Kc4 {[%clk 0:00:51.1]} 60. Ke5 {[%clk 0:00:05.6]} 60... b3 {[%clk
0:00:51.5]} 0-1

[Event "*** Titled Tuesday Blitz"]
[Site "Chess.com"]
[Date "2020.04.07"]
[Round "5"]
[White "DrVelja"]
[Black "rasmussvane"]
[Result "0-1"]
[WhiteElo "2629"]
[BlackElo "2870"]
[TimeControl "180+1"]
[EndTime "13:56:59 PDT"]
[Termination "rasmussvane won on time"]

1. e4 {[%clk 0:03:00.9]} 1... c6 {[%clk 0:02:59.5]} 2. d4 {[%clk 0:03:00.7]}
2... d5 {[%clk 0:03:00.4]} 3. exd5 {[%clk 0:03:00]} 3... cxd5 {[%clk 0:03:00.6]}
4. Bd3 {[%clk 0:03:00.9]} 4... Nc6 {[%clk 0:03:00.2]} 5. c3 {[%clk 0:03:00.9]}
5... Nf6 {[%clk 0:03:00.8]} 6. h3 {[%clk 0:02:58.5]} 6... g6 {[%clk 0:02:55.6]}
7. Bf4 {[%clk 0:02:57.4]} 7... Bf5 {[%clk 0:02:53.9]} 8. Be2 {[%clk 0:02:57.8]}
8... Bg7 {[%clk 0:02:53]} 9. Nf3 {[%clk 0:02:56.2]} 9... O-O {[%clk 0:02:52.9]}
10. O-O {[%clk 0:02:56.6]} 10... a6 {[%clk 0:02:42.5]} 11. Nbd2 {[%clk
0:02:43.7]} 11... b5 {[%clk 0:02:41.6]} 12. Ne5 {[%clk 0:02:29.6]} 12... Qb6
{[%clk 0:02:38.3]} 13. Re1 {[%clk 0:02:15.5]} 13... Rfe8 {[%clk 0:02:34.8]} 14.
g4 {[%clk 0:02:04.7]} 14... Be6 {[%clk 0:02:31.2]} 15. Bf3 {[%clk 0:01:40.4]}
15... Rac8 {[%clk 0:02:30.2]} 16. Nb3 {[%clk 0:01:32.4]} 16... Nxe5 {[%clk
0:02:23]} 17. Bxe5 {[%clk 0:01:31.3]} 17... Nd7 {[%clk 0:02:23.1]} 18. Bxg7
{[%clk 0:01:25.8]} 18... Kxg7 {[%clk 0:02:24]} 19. Qd2 {[%clk 0:01:18.1]} 19...
a5 {[%clk 0:02:22.2]} 20. Nc1 {[%clk 0:01:15]} 20... b4 {[%clk 0:01:21.2]} 21.
Nd3 {[%clk 0:01:14.9]} 21... bxc3 {[%clk 0:01:21.6]} 22. bxc3 {[%clk 0:01:15.8]}
22... Red8 {[%clk 0:01:20.8]} 23. Nf4 {[%clk 0:01:13.3]} 23... Nf8 {[%clk
0:01:21.1]} 24. Re5 {[%clk 0:01:09.4]} 24... Rd6 {[%clk 0:00:38.5]} 25. Rae1
{[%clk 0:01:04.3]} 25... Rcd8 {[%clk 0:00:38.5]} 26. h4 {[%clk 0:01:01.6]} 26...
h6 {[%clk 0:00:35.1]} 27. Kg2 {[%clk 0:00:41.7]} 27... a4 {[%clk 0:00:34.8]} 28.
g5 {[%clk 0:00:28.6]} 28... h5 {[%clk 0:00:28.7]} 29. Bd1 {[%clk 0:00:29.1]}
29... a3 {[%clk 0:00:23.6]} 30. Bb3 {[%clk 0:00:27.9]} 30... Qc6 {[%clk
0:00:24]} 31. R1e3 {[%clk 0:00:25.9]} 31... Rc8 {[%clk 0:00:21.7]} 32. Rf3
{[%clk 0:00:22.1]} 32... Bg4 {[%clk 0:00:19.1]} 33. Rg3 {[%clk 0:00:15.3]} 33...
e6 {[%clk 0:00:19]} 34. Qe1 {[%clk 0:00:14.5]} 34... Nd7 {[%clk 0:00:17.5]} 35.
Ree3 {[%clk 0:00:13.9]} 35... e5 {[%clk 0:00:14.7]} 36. dxe5 {[%clk 0:00:13.6]}
36... d4+ {[%clk 0:00:14.7]} 37. Re4 {[%clk 0:00:05.7]} 37... Bf5 {[%clk
0:00:13.6]} 38. exd6 {[%clk 0:00:06]} 38... Bxe4+ {[%clk 0:00:09]} 39. Kh2
{[%clk 0:00:05.8]} 39... dxc3 {[%clk 0:00:08.7]} 40. Rxc3 {[%clk 0:00:05.6]}
40... Qxc3 {[%clk 0:00:07.9]} 41. Qxe4 {[%clk 0:00:06.5]} 41... Qe5 {[%clk
0:00:08.2]} 42. Qf3 {[%clk 0:00:03.1]} 42... Rc3 {[%clk 0:00:07.8]} 0-1